[Event "3rd Gujarat GM Open 2022"]
[Site "Ahmedabad"]
[Date "2022.04.07"]
[Round "10.6"]
[White "Sammed Jaykumar, Shete"]
[Black "Harsha Bharathakoti"]
[Result "1/2-1/2"]
[ECO "C56"]
[WhiteElo "2408"]
[BlackElo "2499"]
[Annotator "TA"]
[PlyCount "106"]
[EventDate "2022.03.31"]
[EventType "swiss"]
[EventCountry "IND"]
[SourceTitle "playchess.com"]
[Source "ChessBase"]
[SourceQuality "1"]
[TimeControl "5400+30"]

{[%evp 61,106,-123,-124,-116,-107,-116,-116,-124,-116,-119,-119,-142,-118,-110,-43,-43,-43,-49,-28,-33,-33,-34,-16,-20,-20,-77,-47,-47,-47,-42,0,0,0,0,0,0,0,0,0,0,0,0,0,0,0,0,0]} 1. e4 {[%emt 0:00:04]} e5 {[%emt 0:06:01]} 2. Nf3 {[%emt 0:00:14]} Nc6 {[%emt 0:00:04]} 3. d4 {[%emt 0:00:26]} exd4 {[%emt 0:00:08]} 4. Bc4 {[%emt 0:00:05]} Nf6 {[%emt 0:01:43]} 5. e5 {[%emt 0:00:08]} Ne4 {[%emt 0:04:54]} 6. O-O {[%emt 0:00:28]} Be7 {[%emt 0:05:14]} 7. Bd5 {[%emt 0:15:43]} Nc5 {[%emt 1:15:56]} 8. Nxd4 {[%emt 0:09:18]} O-O {[%emt 0:00:00]} 9. Re1 {[%emt 0:12:08]} Nxd4 {[%emt 0:00:00]} 10. Qxd4 {[%emt 0:00:05]} c6 {[%emt 0:00:00]} 11. Bf3 {[%emt 0:06:30]} Ne6 {[%emt 0:00:00]} 12. Qd3 {[%emt 0:02:07]} d5 {[%emt 0:00:00]} 13. exd6 {[%emt 0:00:30]} Bxd6 {[%emt 0:00:00]} 14. Be3 {[%emt 0:03:27]} Qc7 {[%emt 0:00:00]} 15. g3 {[%emt 0:01:51]} Rd8 {[%emt 0:00:00]} 16. Qe2 {[%emt 0:01:24]} Re8 {[%emt 0:00:00]} 17. Qf1 {[%emt 0:00:29]} f5 {[%emt 0:00:00]} 18. Nc3 {[%emt 0:15:35]} f4 {[%emt 0:00:00]} 19. Bd2 {[%emt 0:00:32]} Rf8 {[%emt 0:00:00]} 20. Ne4 {[%emt 0:03:43]} fxg3 {[%emt 0:00:00]} 21. fxg3 {[%emt 0:00:14]} Be5 {[%emt 0:00:00]} 22. c3 {[%emt 0:05:44]} Qb6+ {[%emt 0:00:00]} 23. Kg2 {[%emt 0:02:09]} Qxb2 {[%emt 0:00:00]} 24. Qc4 {[%emt 0:02:13]} Kh8 {[%emt 0:00:00]} 25. Rab1 {[%emt 0:00:44]} Qa3 {[%emt 0:00:00]} 26. Nf2 {[%emt 0:05:56]} Qd6 {[%emt 0:00:35]} 27. Rbd1 {[%emt 0:00:53]} Qc7 {[%emt 0:09:25]} 28. Nd3 {[%emt 0:05:04]} Rxf3 {[%emt 0:00:00]} 29. Kxf3 {[%emt 0:02:41]} Qf7+ {[%emt 0:00:00]} 30. Kg2 {[%emt 0:00:15]} Nf4+ {[%emt 0:00:00]} 31. Bxf4 {[%emt 0:00:10]} Qxc4 {[%emt 0:00:00]} 32. Nxe5 {[%emt 0:00:08]} Qxa2+ {[%emt 0:00:00]} 33. Rd2 {[%emt 0:02:36] [#]} Qg8 $1 {[%emt 0:01:17]} (33... Qa5 $2 {[#]} 34. Rd8+ $3 {[%mdl 512]} (34. Nc4 Bh3+ 35. Kxh3 Qxc3 $16) 34... Qxd8 35. Nf7+ Kg8 36. Nxd8 Bh3+ 37. Kxh3 $18) 34. Nf7+ {[%emt 0:02:49]} Qxf7 {[%emt 0:00:04]} 35. Rd8+ {[%emt 0:00:04]} Qg8 $1 {[%emt 0:00:03]} 36. Rxg8+ {[%emt 0:00:18]} Kxg8 {[%emt 0:00:03]} 37. Re7 {[%emt 0:00:17]} b5 {[%emt 0:03:00]} (37... h6 $17 38. Be5 g5 39. Rg7+ Kf8) 38. Be5 $15 {[%emt 0:00:16]} Bf5 {[%emt 0:00:31]} 39. Rxg7+ {[%emt 0:01:31]} Kf8 {[%emt 0:00:02]} 40. Rc7 {[%emt 0:00:40]} a5 {[%emt 0:00:35]} 41. Kf3 {[%emt 0:00:20]} a4 {[%emt 0:00:46]} (41... Ke8 $5 {[%cal Rf5d7]} 42. Rg7 Ra6 $15) 42. Bd6+ {[%emt 0:00:14]} Kg8 {[%emt 0:00:23]} 43. Ba3 {[%emt 0:00:05]} (43. Kf4 $11 {keeps the balance.}) 43... Re8 {[%emt 0:00:37]} 44. Kf4 {[%emt 0:00:16]} Be4 {[%emt 0:00:05]} 45. h4 {[%emt 0:00:08]} Bd5 {[%emt 0:00:57]} 46. h5 {[%emt 0:00:13]} h6 {[%emt 0:00:18]} 47. g4 {[%emt 0:00:26]} Re4+ {[%emt 0:00:23]} 48. Kf5 {[%emt 0:00:09]} Re3 {[%emt 0:00:28]} 49. Kf6 {[%emt 0:00:37]} Re6+ {[%emt 0:00:20]} 50. Kf5 {[%emt 0:00:05]} Re3 {[%emt 0:00:19]} 51. Kg6 {[%emt 0:01:13]} Re6+ {[%emt 0:00:36]} 52. Kf5 {[%emt 0:00:05]} Re3 {[%emt 0:00:22]} 53. Kg6 {[%emt 0:02:32]} Re6+ {[%emt 0:00:05]} 1/2-1/2

[Event "3rd Gujarat GM Open 2022"]
[Site "Ahmedabad"]
[Date "2022.04.07"]
[Round "10.7"]
[White "Venkatesh, M.R."]
[Black "Shahil Dey"]
[Result "1-0"]
[ECO "B90"]
[WhiteElo "2493"]
[BlackElo "2400"]
[Annotator "TA"]
[PlyCount "123"]
[EventDate "2022.03.31"]
[EventType "swiss"]
[EventCountry "IND"]
[SourceTitle "playchess.com"]
[Source "ChessBase"]
[SourceQuality "1"]
[TimeControl "5400+30"]

{[%evp 92,123,309,239,295,218,712,709,672,0,0,0,665,595,527,395,416,415,512,511,958,933,863,134,134,134,134,134,29979,29980,29982,29983,29985,29986]} 1. e4 {[%emt 0:00:05]} c5 {[%emt 0:00:05]} 2. Nf3 {[%emt 0:00:05]} d6 {[%emt 0:00:09]} 3. d4 {[%emt 0:00:10]} cxd4 {[%emt 0:00:05]} 4. Nxd4 {[%emt 0:00:05]} Nf6 {[%emt 0:00:07]} 5. Nc3 {[%emt 0:00:05]} a6 {[%emt 0:00:05]} 6. h3 {[%emt 0:00:05]} e5 {[%emt 0:00:05]} 7. Nb3 {[%emt 0:00:07]} Be6 {[%emt 0:00:06]} 8. Be3 {[%emt 0:00:26]} Be7 {[%emt 0:00:14]} 9. Qf3 {[%emt 0:02:15]} O-O {[%emt 0:00:07]} 10. g4 {[%emt 0:02:20]} b5 {[%emt 0:01:02]} 11. g5 {[%emt 0:00:47]} Nfd7 {[%emt 0:01:55]} 12. h4 {[%emt 0:00:54]} Nb6 {[%emt 0:04:31]} 13. Nd5 {[%emt 0:22:05]} Nc4 {[%emt 0:18:01]} 14. Bh3 {[%emt 0:21:19]} a5 {[%emt 0:08:55]} 15. Nd2 {[%emt 0:09:11]} Nxe3 {[%emt 0:01:40]} 16. fxe3 {[%emt 0:00:17]} Nd7 {[%emt 0:03:50]} 17. Ke2 {[%emt 0:03:17]} Kh8 {[%emt 0:09:41]} 18. Rag1 {[%emt 0:09:47]} Rc8 {[%emt 0:03:20]} 19. c3 {[%emt 0:00:06]} Nb6 {[%emt 0:01:04]} 20. Qg2 {[%emt 0:08:47]} b4 {[%emt 0:01:54]} 21. g6 {[%emt 0:06:34]} Bxh3 {[%emt 0:02:52]} 22. Rxh3 {[%emt 0:00:16]} Nxd5 {[%emt 0:03:00]} 23. gxh7 {[%emt 0:05:48]} Nxc3+ {[%emt 0:00:08]} 24. bxc3 {[%emt 0:00:05]} g6 {[%emt 0:01:22]} 25. h5 {[%emt 0:00:52]} g5 {[%emt 0:00:06]} 26. c4 {[%emt 0:00:05]} Qd7 {[%emt 0:01:16]} 27. Qf3 {[%emt 0:02:13]} Qe6 {[%emt 0:05:28]} 28. Qf5 {[%emt 0:04:20]} a4 {[%emt 0:03:20]} 29. Rb1 {[%emt 0:00:19]} Rb8 {[%emt 0:00:05]} 30. Rhh1 {[%emt 0:00:18]} Qh6 {[%emt 0:08:07]} 31. Kd3 {[%emt 0:00:38]} Qxh7 {[%emt 0:00:53]} 32. Rhf1 {[%emt 0:00:16]} Rb7 {[%emt 0:00:50]} 33. Rb2 {[%emt 0:01:20]} Kg7 {[%emt 0:03:32]} 34. Rg1 {[%emt 0:00:31]} Qxf5 {[%emt 0:01:29]} 35. exf5 {[%emt 0:00:02]} Rd8 {[%emt 0:03:46]} 36. Ke4 {[%emt 0:00:59]} Rc7 {[%emt 0:02:14]} 37. Rg2 {[%emt 0:01:30]} f6 {[%emt 0:02:49]} 38. h6+ {[%emt 0:00:35]} Kxh6 {[%emt 0:00:49]} 39. Kd5 {[%emt 0:00:08]} Rb8 {[%emt 0:02:12]} 40. Ne4 {[%emt 0:00:07]} Kg7 {[%emt 0:00:13]} 41. Rh2 {[%emt 0:00:26]} b3 {[%emt 0:01:00]} 42. Rh1 {[%emt 0:00:16]} Rh8 {[%emt 0:05:21]} 43. Rxh8 {[%emt 0:00:02]} Kxh8 {[%emt 0:00:05]} 44. axb3 {[%emt 0:00:03]} axb3 {[%emt 0:00:44]} 45. Rxb3 {[%emt 0:00:02]} Kg7 {[%emt 0:00:17]} 46. Ke6 {[%emt 0:01:29]} Bf8 {[%emt 0:00:49]} 47. Rb8 {[%emt 0:01:31]} g4 {[%emt 0:00:31]} (47... Rxc4 48. Nxf6 Rc7 49. Ne8+ Kh6 50. Nxc7 Kh5 51. Rxf8 Kg4 52. Kxd6) 48. Rb1 {[%emt 0:00:29]} ({Inferior is} 48. Nxf6 Re7+ 49. Kd5 Kxf6 $11) 48... d5 $2 {[%emt 0:02:40]} (48... Rxc4 $2 49. Nxf6 Rc7 50. Ne8+ Kh6 51. Nxc7 $18) (48... Re7+ 49. Kd5 Ra7) 49. Kxd5 $18 {[%emt 0:00:34]} ({Wrong is} 49. cxd5 $2 Re7+ 50. Kd6 Rb7+ 51. Kc6 Rxb1 $19) 49... Rd7+ {[%emt 0:00:01]} 50. Ke6 {[%emt 0:00:23]} Re7+ {[%emt 0:00:03]} 51. Kd5 {[%emt 0:00:02]} Rd7+ {[%emt 0:00:09] [#]} 52. Kc6 $1 {[%emt 0:00:06]} ({Less strong is} 52. Ke6 Re7+ 53. Kd5 Rd7+ $18) 52... Rd3 {[%emt 0:00:27]} 53. Re1 {[%emt 0:01:47]} Kf7 {[%emt 0:01:27]} (53... Bb4 $2 54. Rg1 $18) 54. c5 {[%emt 0:00:12]} Bh6 {[%emt 0:00:37]} 55. Rg1 {[%emt 0:00:31]} Rxe3 {[%emt 0:01:01]} (55... Bxe3 $142 56. Rxg4 Rd1) 56. Rxg4 $18 {[%emt 0:00:04]} Bf8 {[%emt 0:01:16]} 57. Kd7 $2 {[%emt 0:01:01]} (57. Rh4 $18 {is more deadly.} Re1 58. Rh7+ Bg7 59. Nd6+ Kg8 60. Rh4) 57... Rxe4 $16 {[%emt 0:00:34]} 58. Rxe4 {[%emt 0:00:03]} Bxc5 {[%emt 0:00:05]} 59. Rh4 {[%emt 0:00:36]} Kg7 $2 {[%emt 0:00:32][%mdl 8192]} (59... Bf8 $16 60. Rh7+ Kg8) 60. Ke6 {[%emt 0:00:08]} Be3 {[%emt 0:00:51]} 61. Rg4+ {[%emt 0:00:29]} Bg5 {[%emt 0:00:03] [#]} 62. Rxg5+ $1 {[%emt 0:00:36]} 1-0

[Event "3rd Gujarat GM Open 2022"]
[Site "Ahmedabad"]
[Date "2022.04.07"]
[Round "10.8"]
[White "Ratnakaran, K.."]
[Black "Laxman, R.R."]
[Result "1/2-1/2"]
[ECO "C77"]
[WhiteElo "2316"]
[BlackElo "2429"]
[Annotator "RC"]
[PlyCount "119"]
[EventDate "2022.03.31"]
[EventType "swiss"]
[EventCountry "IND"]
[SourceTitle "playchess.com"]
[Source "ChessBase"]
[SourceQuality "1"]
[TimeControl "5400+30"]

1. e4 {[%emt 0:00:02]} e5 {[%emt 0:00:11]} 2. Nf3 {[%emt 0:00:06]} Nc6 {[%emt 0:00:06]} 3. Bb5 {[%emt 0:00:03]} a6 {[%emt 0:00:14]} 4. Ba4 {[%emt 0:00:04]} Nf6 {[%emt 0:00:11]} 5. Qe2 {[%emt 0:00:08]} Bd6 {[%emt 0:02:05]} 6. c3 {[%emt 0:00:07]} O-O {[%emt 0:00:16]} 7. d3 {[%emt 0:00:56]} Re8 {[%emt 0:00:14]} 8. g4 {[%emt 0:01:52]} Nxg4 {[%emt 0:03:52]} 9. Rg1 {[%emt 0:00:05]} Nf6 {[%emt 0:00:04]} 10. Bg5 {[%emt 0:00:04]} Be7 {[%emt 0:00:35]} 11. Bxc6 {[%emt 0:00:59]} dxc6 {[%emt 0:00:24]} 12. Nbd2 {[%emt 0:00:49]} Nh5 {[%emt 0:02:01]} 13. Be3 {[%emt 0:00:04]} Nf4 {[%emt 0:00:39]} 14. Bxf4 {[%emt 0:00:06]} exf4 {[%emt 0:00:03]} 15. O-O-O {[%emt 0:00:05]} c5 {[%emt 0:01:58]} 16. d4 {[%emt 0:05:50]} cxd4 {[%emt 0:00:25]} 17. cxd4 {[%emt 0:00:33]} c5 {[%emt 0:01:57]} 18. d5 {[%emt 0:00:41]} Bf8 {[%emt 0:02:37]} 19. e5 {[%emt 0:07:22]} Bf5 {[%emt 0:09:01]} 20. Qc4 {[%emt 0:02:10]} Bg6 {[%emt 0:01:13]} 21. d6 {[%emt 0:00:29]} Qd7 {[%emt 0:01:26]} 22. Rxg6 {[%emt 0:10:16]} hxg6 {[%emt 0:00:11]} 23. Qxf4 {[%emt 0:00:04]} Qf5 {[%emt 0:00:55]} 24. Qg3 {[%emt 0:02:55]} g5 {[%emt 0:05:45]} 25. h3 {[%emt 0:00:22]} c4 {[%emt 0:02:02]} 26. Nf1 {[%emt 0:01:40]} Qf4+ {[%emt 0:04:06]} 27. Ne3 {[%emt 0:00:16]} Rad8 {[%emt 0:08:29]} 28. Qg2 {[%emt 0:16:25]} Rxe5 {[%emt 0:00:31]} 29. Nxe5 {[%emt 0:00:05]} Qxe5 {[%emt 0:00:02]} 30. d7 {[%emt 0:00:06]} Bc5 {[%emt 0:12:24]} 31. Qxb7 {[%emt 0:04:14]} Bxe3+ {[%emt 0:01:10]} 32. fxe3 {[%emt 0:00:04]} Qxe3+ {[%emt 0:00:10]} 33. Kc2 {[%emt 0:07:11]} Qxh3 {[%emt 0:06:24]} 34. Qxa6 {[%emt 0:07:31]} Qf5+ {[%emt 0:02:00]} 35. Kc3 {[%emt 0:01:33]} Qf3+ {[%emt 0:00:39]} 36. Kc2 {[%emt 0:00:11]} Qe4+ {[%emt 0:02:36]} 37. Kc3 {[%emt 0:00:54]} Qe5+ {[%emt 0:01:51]} 38. Kc2 {[%emt 0:10:01]} Qc7 {[%emt 0:02:48]} 39. Qb5 {[%emt 0:06:39]} g4 {[%emt 0:00:24]} 40. Qh5 {[%emt 0:05:29]} Qf4 {[%emt 0:03:32]} 41. Rh1 {[%emt 0:05:19]} Qh6 {[%emt 0:00:48]} 42. Qd5 {[%emt 0:00:23]} Qg6+ {[%emt 0:00:19]} 43. Kc1 {[%emt 0:00:52]} g3 {[%emt 0:03:16]} 44. Qe5 {[%emt 0:00:55]} Qc6 {[%emt 0:04:05]} 45. Qh5 {[%emt 0:01:50]} Qh6+ {[%emt 0:00:58]} 46. Qxh6 {[%emt 0:00:03]} gxh6 {[%emt 0:00:07]} 47. Rg1 {[%emt 0:00:01]} Rxd7 {[%emt 0:00:09]} 48. Rxg3+ {[%emt 0:00:04]} Kh7 {[%emt 0:00:16]} 49. Rc3 {[%emt 0:00:02]} Rd4 {[%emt 0:00:33]} 50. a4 {[%emt 0:00:04]} h5 {[%emt 0:01:02]} 51. a5 {[%emt 0:00:03]} Kg6 {[%emt 0:05:23]} 52. a6 {[%emt 0:01:08]} h4 {[%emt 0:14:03]} 53. a7 {[%emt 0:07:45]} Rd8 {[%emt 0:00:30]} 54. Rxc4 {[%emt 0:00:30]} Kg5 {[%emt 0:00:30]} 55. Rc3 {[%emt 0:00:30]} Kg6 {[%emt 0:00:30]} 56. Rc4 Kg5 {[%emt 0:00:30]} 57. Rc7 {[%emt 0:01:00]} Kg6 {[%emt 0:00:30]} 58. Rc4 Kg5 {[%emt 0:00:30]} 59. Rc7 {[%emt 0:01:00]} f5 {[%emt 0:00:30]} 60. b4 {[%emt 0:00:30]} 1/2-1/2

[Event "3rd Gujarat GM Open 2022"]
[Site "Ahmedabad"]
[Date "2022.04.07"]
[Round "10.9"]
[White "Chanda, Sandipan"]
[Black "Jain Kashish Manoj"]
[Result "1-0"]
[ECO "E94"]
[WhiteElo "2485"]
[BlackElo "2162"]
[Annotator "TA"]
[PlyCount "101"]
[EventDate "2022.03.31"]
[EventType "swiss"]
[EventCountry "IND"]
[SourceTitle "playchess.com"]
[Source "ChessBase"]
[SourceQuality "1"]
[TimeControl "5400+30"]

{[%evp 55,101,139,139,139,139,126,114,112,107,125,135,143,153,143,282,273,469,471,440,389,583,513,864,816,942,905,1112,1112,935,929,929,711,627,489,1519,1478,1388,1153,1127,913,29975,29976,29976,29977,29981,29982,29981,882]} 1. d4 {[%emt 0:00:08]} Nf6 {[%emt 0:00:12]} 2. c4 {[%emt 0:00:10]} g6 {[%emt 0:00:12]} 3. Nc3 {[%emt 0:00:08]} Bg7 {[%emt 0:00:06]} 4. e4 {[%emt 0:00:15]} d6 {[%emt 0:00:09]} 5. Be2 {[%emt 0:00:08]} O-O {[%emt 0:00:08]} 6. Bg5 {[%emt 0:00:07]} Na6 {[%emt 0:01:30]} 7. Nf3 {[%emt 0:00:18]} e5 {[%emt 0:00:19]} 8. O-O {[%emt 0:00:32]} h6 {[%emt 0:00:26]} 9. Be3 {[%emt 0:00:12]} Qe8 {[%emt 0:15:57]} 10. d5 {[%emt 0:03:31]} Ng4 {[%emt 0:02:45]} 11. Bd2 {[%emt 0:03:23]} f5 {[%emt 0:00:46]} 12. Nh4 {[%emt 0:01:55]} Nf6 {[%emt 0:04:31]} 13. exf5 {[%emt 0:00:45]} gxf5 {[%emt 0:00:11]} 14. Qc1 {[%emt 0:03:14]} Kh7 {[%emt 0:04:38]} 15. Qc2 {[%emt 0:03:48]} Ng8 {[%emt 0:01:54]} 16. Rae1 {[%emt 0:02:37]} Ne7 {[%emt 0:02:50]} 17. g4 {[%emt 0:14:39]} Kh8 {[%emt 0:08:19]} 18. f4 {[%emt 0:01:00]} fxg4 {[%emt 0:09:14]} 19. fxe5 {[%emt 0:00:19]} Rxf1+ {[%emt 0:00:47]} 20. Rxf1 {[%emt 0:03:13]} Qh5 {[%emt 0:00:25]} 21. exd6 {[%emt 0:06:53]} cxd6 {[%emt 0:01:06]} 22. Be1 {[%emt 0:05:05]} Bd7 {[%emt 0:06:15]} 23. Ne4 {[%emt 0:14:04]} Nf5 {[%emt 0:21:00]} 24. Nxf5 {[%emt 0:00:20]} Bxf5 {[%emt 0:00:29]} 25. Bc3 {[%emt 0:00:06]} Rg8 {[%emt 0:09:29]} 26. Bd3 {[%emt 0:00:37]} Bxe4 {[%emt 0:06:16]} 27. Bxg7+ {[%emt 0:00:36]} Rxg7 {[%emt 0:00:07]} 28. Rf8+ {[%emt 0:00:22]} Rg8 {[%emt 0:00:01]} 29. Qc3+ {[%emt 0:00:09]} Qe5 {[%emt 0:00:01]} 30. Qxe5+ {[%emt 0:00:08]} dxe5 {[%emt 0:00:01]} 31. Rxg8+ {[%emt 0:00:07]} Kxg8 {[%emt 0:00:01]} 32. Bxe4 {[%emt 0:00:10]} Kf7 {[%emt 0:00:50]} 33. Bf5 {[%emt 0:02:17]} Ke7 {[%emt 0:00:15]} 34. Bxg4 {[%emt 0:04:37]} b5 {[%emt 0:01:48]} (34... Kd6 $16 35. Be2 b5) 35. cxb5 $18 {[%emt 0:02:01]} Nb4 $2 {[%emt 0:00:15] [#]} (35... Nc5 {might work better.} 36. Bd1 Kd6) 36. a4 $1 $18 {[%emt 0:04:30]} Nxd5 {[%emt 0:02:47]} 37. Bf3 {[%emt 0:05:10]} Nc7 {[%emt 0:00:31]} (37... Nb4 $142 38. Be4 Ke8) 38. Kf2 $18 {[%emt 0:00:49]} Kd6 {[%emt 0:00:10]} (38... Ne8 $142 39. a5 Nd6) 39. b4 $18 {[%emt 0:02:34]} Ne6 {[%emt 0:02:09]} 40. Ke3 {[%emt 0:01:44]} Nd4 {[%emt 0:00:06]} 41. Be4 {[%emt 0:00:12]} Ne6 {[%emt 0:00:06]} 42. Kd3 {[%emt 0:00:23]} Ng5 {[%emt 0:00:44]} 43. a5 {[%emt 0:00:50]} Kc7 {[%emt 0:00:38]} 44. Bd5 {[%emt 0:00:35]} Nh3 {[%emt 0:00:35]} (44... Nh7 $142 45. Kc3 Ng5) 45. Ke4 $18 {[%emt 0:02:41]} Nf2+ {[%emt 0:00:06]} 46. Kxe5 {[%emt 0:00:27]} Nd3+ {[%emt 0:01:36]} 47. Kd4 {[%emt 0:03:22]} Nxb4 {[%emt 0:00:03]} 48. Bb3 {[%emt 0:01:01]} Kd6 {[%emt 0:00:01]} 49. a6 {[%emt 0:00:26]} h5 {[%emt 0:01:31]} 50. h4 {[%emt 0:00:08]} Kc7 {[%emt 0:00:02]} 51. Ke4 {[%emt 0:13:14]} (51. Kc4 $142 Nxa6 52. bxa6 Kc6 53. Kd4 Kd6 54. Bc4 Ke7 55. Ke5 Ke8 56. Kf6) 1-0

[Event "3rd Gujarat GM Open 2022"]
[Site "Ahmedabad"]
[Date "2022.04.07"]
[Round "10.10"]
[White "Raahul V S"]
[Black "Ayush Sharma"]
[Result "1-0"]
[ECO "E43"]
[WhiteElo "2478"]
[BlackElo "2302"]
[Annotator "TA"]
[PlyCount "97"]
[EventDate "2022.03.31"]
[EventType "swiss"]
[EventCountry "IND"]
[SourceTitle "playchess.com"]
[Source "ChessBase"]
[SourceQuality "1"]
[TimeControl "5400+30"]

{[%evp 58,97,136,105,113,81,199,204,287,294,303,285,296,292,264,250,338,331,394,377,427,445,504,466,510,490,865,787,638,770,708,683,928,885,885,676,555,402,473,418,1171,1146]} 1. d4 {[%emt 0:04:57]} Nf6 {[%emt 0:03:45]} 2. c4 {[%emt 0:00:19]} e6 {[%emt 0:00:10]} 3. Nc3 {[%emt 0:00:09]} Bb4 {[%emt 0:00:20]} 4. e3 {[%emt 0:00:26]} O-O {[%emt 0:00:39]} 5. Bd2 {[%emt 0:00:05]} b6 {[%emt 0:00:44]} 6. Nf3 {[%emt 0:00:06]} Bb7 {[%emt 0:00:02]} 7. Bd3 {[%emt 0:00:05]} c5 {[%emt 0:01:10]} 8. O-O {[%emt 0:06:40]} d5 {[%emt 0:03:45]} 9. cxd5 {[%emt 0:01:25]} exd5 {[%emt 0:02:25]} 10. Rc1 {[%emt 0:02:43]} Ne4 {[%emt 0:02:29]} 11. Be1 {[%emt 0:06:45]} Nd7 {[%emt 0:02:12]} 12. dxc5 {[%emt 0:07:50]} bxc5 {[%emt 0:01:28]} 13. Qc2 {[%emt 0:02:47]} Ndf6 {[%emt 0:05:04]} 14. Na4 {[%emt 0:06:03]} Rc8 {[%emt 0:07:47]} 15. Nd2 {[%emt 0:14:04]} Nxd2 {[%emt 0:12:00]} 16. Bxd2 {[%emt 0:00:02]} d4 {[%emt 0:00:42]} 17. Rfd1 {[%emt 0:07:22]} Re8 {[%emt 0:21:12]} 18. Bf5 {[%emt 0:01:34]} Be4 {[%emt 0:04:50]} 19. Bxe4 {[%emt 0:00:24]} Nxe4 {[%emt 0:00:02]} 20. Bxb4 {[%emt 0:00:28]} cxb4 {[%emt 0:01:00]} 21. Qxc8 {[%emt 0:00:33]} Qxc8 {[%emt 0:00:06]} 22. Rxc8 {[%emt 0:00:02]} Rxc8 {[%emt 0:00:01]} 23. f3 {[%emt 0:00:30]} Nf6 {[%emt 0:07:53]} 24. Rxd4 {[%emt 0:00:45]} a5 {[%emt 0:00:03]} 25. Kf2 {[%emt 0:03:17]} Rc2+ {[%emt 0:00:40]} 26. Ke1 {[%emt 0:00:23]} h5 {[%emt 0:02:39]} 27. Rd2 {[%emt 0:00:11]} Rc1+ {[%emt 0:00:01]} 28. Ke2 {[%emt 0:00:10]} h4 {[%emt 0:01:14]} 29. b3 {[%emt 0:04:36]} g5 {[%emt 0:01:10]} 30. h3 {[%emt 0:00:49]} Kg7 {[%emt 0:01:56]} 31. Nb2 {[%emt 0:02:32]} Nh5 {[%emt 0:00:02] [#]} (31... Rc3 $16 {is a better defense.}) 32. Kd3 $1 $18 {[%emt 0:01:37]} Ng3 {[%emt 0:05:34]} (32... Rc3+ $142 33. Kd4 Ng3) 33. Rc2 $18 {[%emt 0:01:52]} Ra1 {[%emt 0:03:19]} 34. Nc4 {[%emt 0:00:02]} Rd1+ {[%emt 0:01:10]} 35. Rd2 {[%emt 0:00:01]} Rc1 {[%emt 0:00:01]} 36. e4 {[%emt 0:02:00]} ({Weaker is} 36. Nxa5 Rc3+ 37. Kd4 Nf5+ 38. Kd5 Nxe3+ 39. Kd6 Nf5+ 40. Kd7 Rc5 $16) 36... Nh5 {[%emt 0:02:18]} 37. Kd4 {[%emt 0:00:08]} ({Less strong is} 37. Nxa5 Nf4+ 38. Kd4 Rg1 $16) 37... Nf4 {[%emt 0:00:12]} 38. Kc5 {[%emt 0:00:11]} f5 {[%emt 0:02:31]} 39. exf5 {[%emt 0:02:49]} Rg1 {[%emt 0:01:45]} 40. Ne3 {[%emt 0:00:24]} Re1 {[%emt 0:00:02]} 41. Ng4 {[%emt 0:01:24]} Rg1 {[%emt 0:00:35]} (41... Re2 $142 42. f6+ Kf7 43. Rd7+ Kg8 44. Nh6+ Kh8) 42. Rd7+ {[%emt 0:00:29]} Kf8 {[%emt 0:00:34]} 43. f6 {[%emt 0:00:45]} Re1 {[%emt 0:01:26]} 44. Nh6 {[%emt 0:00:39]} Re6 {[%emt 0:00:27]} 45. Rd8+ {[%emt 0:01:22]} Re8 {[%emt 0:00:01]} 46. Rd6 {[%emt 0:00:41]} Nxg2 {[%emt 0:01:38]} 47. f7 {[%emt 0:00:09]} Rc8+ {[%emt 0:00:01]} 48. Kb6 {[%emt 0:00:05]} Nf4 {[%emt 0:00:08]} (48... Kg7 $142 49. Nf5+ (49. Kxa5 Nf4 $16) 49... Kxf7) 49. Kb7 {[%emt 0:00:10]} 1-0

[Event "3rd Gujarat GM Open 2022"]
[Site "Ahmedabad"]
[Date "2022.04.07"]
[Round "10.11"]
[White "Sidhant, Mohapatra"]
[Black "Mirzoev, Azer"]
[Result "1/2-1/2"]
[ECO "C67"]
[WhiteElo "2359"]
[BlackElo "2468"]
[Annotator "TA"]
[PlyCount "61"]
[EventDate "2022.03.31"]
[EventType "swiss"]
[EventCountry "IND"]
[SourceTitle "playchess.com"]
[Source "ChessBase"]
[SourceQuality "1"]
[TimeControl "5400+30"]

{[%evp 18,61,16,22,24,0,7,7,4,5,6,0,6,0,0,0,0,0,0,0,0,0,0,0,0,0,0,0,6,0,0,0,11,0,0,0,0,0,0,0,0,0,0,0,0,0]} 1. e4 {[%emt 1:31:00]} e5 {[%emt 1:31:00]} 2. Nf3 {[%emt 0:00:30]} Nc6 {[%emt 0:00:30]} 3. Bb5 {[%emt 0:00:30]} Nf6 {[%emt 0:00:30]} 4. O-O {[%emt 0:00:30][%cal Bh1f1,Bf1e1,Be1e5][%mdl 32]} Nxe4 {[%emt 0:00:30]} 5. Re1 {[%emt 0:00:30]} Nd6 6. Nxe5 {[%emt 0:00:30]} Be7 {[%emt 0:01:00]} 7. Bf1 {[%emt 0:00:30]} Nxe5 {[%emt 0:00:30]} 8. Rxe5 {[%emt 0:00:30]} O-O {[%emt 0:00:30]} 9. d4 {[%emt 0:00:30]} Bf6 {[%emt 0:00:30]} 10. Re1 {[%emt 0:00:30]} Re8 {[%emt 0:00:30] C67: Ruy Lopez: Berlin Defence: 4 0-0 Nxe4.} 11. Rxe8+ {[%emt 0:00:30]} Nxe8 {[%emt 0:00:30] The position is equal.} 12. c3 {[%emt 0:00:30]} d5 {[%emt 0:00:30]} 13. Nd2 {[%emt 0:00:30]} c6 {[%emt 0:00:30] [#]} 14. h3 $146 {[%emt 0:00:30]} ({Predecessor:} 14. Nf3 Bg4 15. Be2 Nd6 16. Bf4 Nc4 17. Qc2 Qd7 18. Bxc4 dxc4 19. Ne5 Bxe5 20. Bxe5 {½-½ (76) Murzin,V (2519)-Hovhannisyan,R (2643) Warsaw 2021}) 14... Nd6 {[%emt 0:00:30]} 15. Bd3 {[%emt 0:00:30]} Bf5 {[%emt 0:00:30]} 16. Bxf5 {[%emt 0:00:30]} Nxf5 {[%emt 0:00:30]} 17. Nf3 {[%emt 0:00:30][%cal Bd2f3,Bf3e1,Be1d3][%mdl 32]} Qb6 {[%emt 0:00:30]} 18. Qc2 {[%emt 0:00:30]} g6 {[%emt 0:00:30]} 19. Bf4 {[%emt 0:00:30]} Re8 {[%emt 0:00:30]} 20. Re1 {[%emt 0:00:30]} Rxe1+ {[%emt 0:00:30]} 21. Nxe1 {[%emt 0:00:30]} Qd8 {[%emt 0:00:30]} 22. Qe2 {[%emt 0:00:30]} Qe7 {[%emt 0:00:30]} 23. Qxe7 {[%emt 0:00:30]} Bxe7 $11 {[%emt 0:00:30][%mdl 4096] Endgame KBN-KBN} 24. Nd3 {[%emt 0:00:30]} Bd6 {[%emt 0:00:30]} 25. Bxd6 {[%emt 0:00:30]} Nxd6 {[%emt 0:00:30] KN-KN} 26. Kf1 {[%emt 0:00:30]} f6 {[%emt 0:00:30]} 27. Ke2 {[%emt 0:00:30]} Kf7 {[%emt 0:00:30]} 28. f3 {[%emt 0:00:30]} Ke7 {[%emt 0:00:30]} 29. g4 {[%emt 0:00:30]} b6 {[%emt 0:00:30]} 30. b3 {[%emt 0:00:30]} a5 {[%emt 0:00:30]} 31. h4 {[%emt 0:00:30] An uneventful encounter.  Weighted Error Value: White=0.03 (flawless) /Black=0.02 (flawless)} 1/2-1/2